[Event "Late-Titled-Tuesday-Blitz-February-13-2024"]
[Site "Chess.com"]
[Date "2024.02.13"]
[Round "3"]
[White "KuzubovYuriy"]
[Black "DmitryMaximov"]
[Result "1-0"]
[WhiteElo "2981"]
[BlackElo "2735"]
[TimeControl "180+1"]
[EndTime "14:29:37 PST"]
[Termination "KuzubovYuriy won by resignation"]

1. d4 {[%clk 0:03:00.9]} 1... Nf6 {[%clk 0:03:00.1]} 2. Nf3 {[%clk 0:03:01.5]}
2... g6 {[%clk 0:03:00.4]} 3. Nbd2 {[%clk 0:03:01.7]} 3... d5 {[%clk 0:03:00]}
4. b4 {[%clk 0:03:01.4]} 4... a5 {[%clk 0:02:58.6]} 5. b5 {[%clk 0:03:01.3]}
5... Bg7 {[%clk 0:02:57.4]} 6. e3 {[%clk 0:03:01.8]} 6... O-O {[%clk 0:02:56]}
7. c4 {[%clk 0:03:01.5]} 7... c5 {[%clk 0:02:54]} 8. Bb2 {[%clk 0:03:01.3]} 8...
b6 {[%clk 0:02:52.3]} 9. dxc5 {[%clk 0:03:00]} 9... bxc5 {[%clk 0:02:51.6]} 10.
cxd5 {[%clk 0:03:00.6]} 10... Nxd5 {[%clk 0:02:51.1]} 11. Bxg7 {[%clk
0:02:58.6]} 11... Kxg7 {[%clk 0:02:52]} 12. Qc2 {[%clk 0:02:58.2]} 12... Nd7
{[%clk 0:02:45.5]} 13. Be2 {[%clk 0:02:57.1]} 13... Bb7 {[%clk 0:02:43.8]} 14.
O-O {[%clk 0:02:56.9]} 14... f6 {[%clk 0:02:32.9]} 15. Rfd1 {[%clk 0:02:54.2]}
15... Qc7 {[%clk 0:02:22.8]} 16. Rac1 {[%clk 0:02:51.3]} 16... Rfc8 {[%clk
0:02:17.5]} 17. Nc4 {[%clk 0:02:46.6]} 17... N7b6 {[%clk 0:02:06]} 18. Nfd2
{[%clk 0:02:43.2]} 18... Nb4 {[%clk 0:01:51.4]} 19. Qb1 {[%clk 0:02:41.1]} 19...
Nxc4 {[%clk 0:01:45.5]} 20. Nxc4 {[%clk 0:02:40.4]} 20... Rd8 {[%clk 0:01:40.1]}
21. a3 {[%clk 0:02:36.8]} 21... Nd5 {[%clk 0:01:40.2]} 22. Bf3 {[%clk
0:02:26.2]} 22... a4 {[%clk 0:01:32.5]} 23. h3 {[%clk 0:02:24.4]} 23... Nb6
{[%clk 0:01:26.1]} 24. Nxb6 {[%clk 0:02:21.2]} 24... Qxb6 {[%clk 0:01:24.2]} 25.
Rxd8 {[%clk 0:02:15.8]} 25... Rxd8 {[%clk 0:01:21.4]} 26. Bxb7 {[%clk
0:02:15.9]} 26... Qxb7 {[%clk 0:01:22.3]} 27. Rxc5 {[%clk 0:02:15.8]} 27... Rd6
{[%clk 0:01:16.2]} 28. Rc4 {[%clk 0:02:11.5]} 28... Rb6 {[%clk 0:01:00.9]} 29.
Rb4 {[%clk 0:02:09.8]} 29... Qd5 {[%clk 0:00:59.7]} 30. Qb2 {[%clk 0:02:01.6]}
30... g5 {[%clk 0:00:50.2]} 31. Qd4 {[%clk 0:01:54.6]} 31... Rxb5 {[%clk
0:00:47.5]} 32. Qxd5 {[%clk 0:01:53.7]} 32... Rxd5 {[%clk 0:00:47.8]} 33. Rxa4
{[%clk 0:01:54.4]} 33... Rd1+ {[%clk 0:00:47.8]} 34. Kh2 {[%clk 0:01:54.6]}
34... Ra1 {[%clk 0:00:46.7]} 35. g4 {[%clk 0:01:52.3]} 35... Kg6 {[%clk
0:00:44]} 36. Ra7 {[%clk 0:01:51]} 36... e5 {[%clk 0:00:43.3]} 37. Ra6 {[%clk
0:01:46.6]} 37... Ra2 {[%clk 0:00:36.9]} 38. Kg3 {[%clk 0:01:46.6]} 38... Ra1
{[%clk 0:00:31.9]} 39. a4 {[%clk 0:01:43.1]} 39... Ra3 {[%clk 0:00:31.7]} 40. h4
{[%clk 0:01:41.5]} 40... gxh4+ {[%clk 0:00:29.8]} 41. Kxh4 {[%clk 0:01:42]}
41... Ra2 {[%clk 0:00:30.4]} 42. Kg3 {[%clk 0:01:42.1]} 42... Ra1 {[%clk
0:00:29.2]} 43. Kf3 {[%clk 0:01:38.3]} 43... Ra2 {[%clk 0:00:27.8]} 44. Ra8
{[%clk 0:01:36.2]} 44... h5 {[%clk 0:00:24.2]} 45. gxh5+ {[%clk 0:01:36.3]}
45... Kxh5 {[%clk 0:00:24.6]} 46. a5 {[%clk 0:01:24.6]} 46... Kg6 {[%clk
0:00:24.9]} 47. a6 {[%clk 0:01:22.6]} 47... Kg7 {[%clk 0:00:23.6]} 48. a7 {[%clk
0:01:17.2]} 48... Ra4 {[%clk 0:00:22.6]} 49. Ke2 {[%clk 0:01:15]} 49... Ra3
{[%clk 0:00:22.5]} 50. Kd2 {[%clk 0:01:15.1]} 50... Ra2+ {[%clk 0:00:21.6]} 51.
Kc3 {[%clk 0:01:15.4]} 51... Ra1 {[%clk 0:00:21.4]} 52. Kc4 {[%clk 0:01:15.2]}
52... Rc1+ {[%clk 0:00:20.4]} 53. Kd5 {[%clk 0:01:15.6]} 53... Ra1 {[%clk
0:00:19.9]} 54. Ke6 {[%clk 0:01:15.8]} 54... Ra6+ {[%clk 0:00:19.7]} 55. Kf5
{[%clk 0:01:16.1]} 55... Ra2 {[%clk 0:00:19.3]} 56. f3 {[%clk 0:01:09.1]} 56...
Ra3 {[%clk 0:00:19.1]} 57. Ke6 {[%clk 0:00:56.2]} 57... Ra6+ {[%clk 0:00:18.8]}
58. Ke7 {[%clk 0:00:56.7]} 58... Ra3 {[%clk 0:00:17.9]} 59. Ke8 {[%clk 0:00:56]}
59... Ra1 {[%clk 0:00:13.9]} 60. e4 {[%clk 0:00:52]} 60... Ra3 {[%clk
0:00:13.8]} 61. Kd7 {[%clk 0:00:46.8]} 61... Ra1 {[%clk 0:00:13.2]} 62. Ke6
{[%clk 0:00:46.2]} 62... Ra6+ {[%clk 0:00:13]} 63. Kf5 {[%clk 0:00:46.2]} 63...
Ra1 {[%clk 0:00:13]} 64. Rb8 {[%clk 0:00:42.4]} 64... Rxa7 {[%clk 0:00:12.6]}
65. Rb6 {[%clk 0:00:42.4]} 65... Ra3 {[%clk 0:00:12.2]} 66. Rb7+ {[%clk
0:00:40.3]} 66... Kf8 {[%clk 0:00:10.6]} 67. Kxf6 {[%clk 0:00:35.1]} 67... Rxf3+
{[%clk 0:00:10.5]} 68. Ke6 {[%clk 0:00:34.9]} 68... Ra3 {[%clk 0:00:09.3]} 69.
Rb8+ {[%clk 0:00:32.6]} 69... Kg7 {[%clk 0:00:09.4]} 70. Kxe5 {[%clk 0:00:32.9]}
70... Ra6 {[%clk 0:00:08.9]} 71. Rd8 {[%clk 0:00:28.8]} 71... Kf7 {[%clk
0:00:08.5]} 72. Rd7+ {[%clk 0:00:28.7]} 72... Ke8 {[%clk 0:00:07.9]} 73. Rd6
{[%clk 0:00:29.3]} 73... Ra4 {[%clk 0:00:07.5]} 74. Kf5 {[%clk 0:00:28.4]} 74...
Ra1 {[%clk 0:00:07.3]} 75. Ke6 {[%clk 0:00:25.4]} 75... Rh1 {[%clk 0:00:05.2]}
76. e5 {[%clk 0:00:25.7]} 76... Rh6+ {[%clk 0:00:05.1]} 77. Kd5 {[%clk
0:00:26.1]} 77... Rh1 {[%clk 0:00:04.9]} 78. Ra6 {[%clk 0:00:24.8]} 78... Ke7
{[%clk 0:00:03.5]} 79. Ra7+ {[%clk 0:00:24.7]} 79... Ke8 {[%clk 0:00:03.3]} 80.
Kd6 {[%clk 0:00:23.6]} 80... Rb1 {[%clk 0:00:01.7]} 81. Ra8+ {[%clk 0:00:22.5]}
81... Kf7 {[%clk 0:00:02.2]} 82. e6+ {[%clk 0:00:23.1]} 82... Kg7 {[%clk
0:00:02.4]} 83. e7 {[%clk 0:00:23.2]} 83... Rd1+ {[%clk 0:00:03]} 84. Kc5 {[%clk
0:00:23.1]} 84... Rc1+ {[%clk 0:00:03]} 85. Kb4 {[%clk 0:00:23.6]} 85... Rb1+
{[%clk 0:00:03.6]} 86. Kc3 {[%clk 0:00:24.1]} 86... Rc1+ {[%clk 0:00:04]} 87.
Kd2 {[%clk 0:00:24.5]} 1-0

[Event "Late-Titled-Tuesday-Blitz-February-13-2024"]
[Site "Chess.com"]
[Date "2024.02.13"]
[Round "3"]
[White "2L8IWUN"]
[Black "pirulillo"]
[Result "1/2-1/2"]
[WhiteElo "1967"]
[BlackElo "2285"]
[TimeControl "180+1"]
[EndTime "14:29:37 PST"]
[Termination "Game drawn - timeout vs insufficient material"]

1. d4 {[%clk 0:01:56.8]} 1... Nf6 {[%clk 0:02:41]} 2. Nf3 {[%clk 0:01:55.1]}
2... g6 {[%clk 0:02:41]} 3. g3 {[%clk 0:01:54.3]} 3... Bg7 {[%clk 0:02:41.2]} 4.
Bg2 {[%clk 0:01:55]} 4... O-O {[%clk 0:02:40.7]} 5. O-O {[%clk 0:01:55]} 5... d6
{[%clk 0:02:41.1]} 6. b3 {[%clk 0:01:54.6]} 6... Nbd7 {[%clk 0:02:37.3]} 7. Bb2
{[%clk 0:01:50.3]} 7... c6 {[%clk 0:02:36.7]} 8. c4 {[%clk 0:01:48.1]} 8... Qc7
{[%clk 0:02:37]} 9. Nc3 {[%clk 0:01:39.6]} 9... Re8 {[%clk 0:02:37.1]} 10. e4
{[%clk 0:01:34.8]} 10... e5 {[%clk 0:02:36.8]} 11. Re1 {[%clk 0:01:34.5]} 11...
exd4 {[%clk 0:02:35.1]} 12. Nxd4 {[%clk 0:01:33.8]} 12... a5 {[%clk 0:02:36]}
13. Qd2 {[%clk 0:01:28.2]} 13... Nc5 {[%clk 0:02:35.7]} 14. Rad1 {[%clk
0:01:25.7]} 14... Bg4 {[%clk 0:02:34.9]} 15. f3 {[%clk 0:01:23.4]} 15... Bc8
{[%clk 0:02:22.8]} 16. Nc2 {[%clk 0:01:14.3]} 16... Be6 {[%clk 0:02:05.2]} 17.
Qxd6 {[%clk 0:01:06.1]} 17... Qxd6 {[%clk 0:02:01.6]} 18. Rxd6 {[%clk
0:01:05.2]} 18... Red8 {[%clk 0:01:54.3]} 19. Red1 {[%clk 0:01:02.2]} 19... Rxd6
{[%clk 0:01:54.3]} 20. Rxd6 {[%clk 0:01:03.1]} 20... Bf8 {[%clk 0:01:51.8]} 21.
Rd2 {[%clk 0:01:00.1]} 21... a4 {[%clk 0:01:52]} 22. Nxa4 {[%clk 0:00:52]} 22...
Nxa4 {[%clk 0:01:50.6]} 23. Bxf6 {[%clk 0:00:49.4]} 23... Nc5 {[%clk 0:01:45.8]}
24. Ne3 {[%clk 0:00:48.1]} 24... Nd7 {[%clk 0:01:42.4]} 25. Bc3 {[%clk
0:00:47.1]} 25... Bc5 {[%clk 0:01:42.8]} 26. Kf2 {[%clk 0:00:46.4]} 26... f5
{[%clk 0:01:38.4]} 27. exf5 {[%clk 0:00:45.1]} 27... Bxf5 {[%clk 0:01:39.3]} 28.
Ke2 {[%clk 0:00:42.1]} 28... Re8 {[%clk 0:01:39]} 29. Bd4 {[%clk 0:00:42.4]}
29... Bb4 {[%clk 0:01:31.9]} 30. Rd1 {[%clk 0:00:39.3]} 30... Nc5 {[%clk
0:01:28.8]} 31. Kf2 {[%clk 0:00:32.7]} 31... Nd3+ {[%clk 0:01:26.7]} 32. Kf1
{[%clk 0:00:32.7]} 32... c5 {[%clk 0:01:13.9]} 33. Nxf5 {[%clk 0:00:26.3]} 33...
cxd4 {[%clk 0:01:12.3]} 34. Nxd4 {[%clk 0:00:21.9]} 34... Ne1 {[%clk 0:00:57.9]}
35. Bh3 {[%clk 0:00:19]} 35... Bc3 {[%clk 0:00:55.7]} 36. Ne2 {[%clk 0:00:18.3]}
36... Bb4 {[%clk 0:00:55]} 37. Rxe1 {[%clk 0:00:18.2]} 37... Bxe1 {[%clk
0:00:54.7]} 38. Kxe1 {[%clk 0:00:19.1]} 38... Ra8 {[%clk 0:00:55.1]} 39. a4
{[%clk 0:00:18.4]} 39... Rd8 {[%clk 0:00:54.6]} 40. Be6+ {[%clk 0:00:18.2]}
40... Kg7 {[%clk 0:00:54.3]} 41. Bd5 {[%clk 0:00:19.1]} 41... b6 {[%clk
0:00:54.3]} 42. Nd4 {[%clk 0:00:18.7]} 42... Kf6 {[%clk 0:00:54.3]} 43. f4
{[%clk 0:00:18.2]} 43... h6 {[%clk 0:00:53.3]} 44. Kf2 {[%clk 0:00:18.3]} 44...
g5 {[%clk 0:00:53.4]} 45. fxg5+ {[%clk 0:00:18]} 45... hxg5 {[%clk 0:00:54.3]}
46. h4 {[%clk 0:00:18.4]} 46... gxh4 {[%clk 0:00:54.2]} 47. gxh4 {[%clk
0:00:19.3]} 47... Rh8 {[%clk 0:00:54.4]} 48. Kg3 {[%clk 0:00:19.5]} 48... Ke5
{[%clk 0:00:54.9]} 49. Ne6 {[%clk 0:00:17.9]} 49... Kd6 {[%clk 0:00:54]} 50. Ng5
{[%clk 0:00:18]} 50... Kc5 {[%clk 0:00:53.7]} 51. Kg4 {[%clk 0:00:18.4]} 51...
Kb4 {[%clk 0:00:52.8]} 52. h5 {[%clk 0:00:18.9]} 52... Kxb3 {[%clk 0:00:52.8]}
53. Nf7 {[%clk 0:00:19.1]} 53... Rg8+ {[%clk 0:00:52.3]} 54. Kf4 {[%clk
0:00:18.8]} 54... Kxa4 {[%clk 0:00:53.2]} 55. h6 {[%clk 0:00:18.6]} 55... Rf8
{[%clk 0:00:53.1]} 56. h7 {[%clk 0:00:18.6]} 56... Kb4 {[%clk 0:00:52.8]} 57.
h8=Q {[%clk 0:00:18.5]} 57... Rxh8 {[%clk 0:00:52.9]} 58. Nxh8 {[%clk
0:00:19.4]} 58... Kc5 {[%clk 0:00:53]} 59. Ke4 {[%clk 0:00:18.7]} 59... b5
{[%clk 0:00:52.9]} 60. cxb5 {[%clk 0:00:18.5]} 60... Kxb5 {[%clk 0:00:52.9]} 61.
Nf7 {[%clk 0:00:19.4]} 61... Kc5 {[%clk 0:00:52.4]} 62. Ne5 {[%clk 0:00:20.3]}
62... Kd6 {[%clk 0:00:52.4]} 63. Kd4 {[%clk 0:00:19.5]} 63... Ke7 {[%clk
0:00:52.4]} 64. Ng4 {[%clk 0:00:19]} 64... Kd6 {[%clk 0:00:50.5]} 65. Bc4 {[%clk
0:00:17.8]} 65... Ke7 {[%clk 0:00:50.1]} 66. Ke5 {[%clk 0:00:17.5]} 66... Kf8
{[%clk 0:00:49.1]} 67. Kf6 {[%clk 0:00:15.5]} 67... Ke8 {[%clk 0:00:48.7]} 68.
Ne5 {[%clk 0:00:15.2]} 68... Kf8 {[%clk 0:00:48.1]} 69. Be6 {[%clk 0:00:14.9]}
69... Ke8 {[%clk 0:00:47.7]} 70. Nd7 {[%clk 0:00:12.4]} 70... Kd8 {[%clk
0:00:46.3]} 71. Ke5 {[%clk 0:00:12.3]} 71... Ke7 {[%clk 0:00:46.1]} 72. Nf6
{[%clk 0:00:12]} 72... Kf8 {[%clk 0:00:45.5]} 73. Nh5 {[%clk 0:00:10.9]} 73...
Ke7 {[%clk 0:00:44.8]} 74. Ng7 {[%clk 0:00:10.1]} 74... Kf8 {[%clk 0:00:44.9]}
75. Nf5 {[%clk 0:00:10.7]} 75... Ke8 {[%clk 0:00:43.8]} 76. Kf6 {[%clk
0:00:07.1]} 76... Kf8 {[%clk 0:00:43.6]} 77. Ne7 {[%clk 0:00:05.6]} 77... Ke8
{[%clk 0:00:42.8]} 78. Bf5 {[%clk 0:00:03.8]} 78... Kf8 {[%clk 0:00:42.6]} 79.
Ng6+ {[%clk 0:00:02.3]} 79... Kg8 {[%clk 0:00:42.3]} 80. Be6+ {[%clk 0:00:02.6]}
80... Kh7 {[%clk 0:00:40.1]} 81. Bf7 {[%clk 0:00:02.6]} 81... Kh6 {[%clk
0:00:39.2]} 82. Nf4 {[%clk 0:00:02.8]} 82... Kh7 {[%clk 0:00:38.9]} 83. Bg6+
{[%clk 0:00:03]} 83... Kg8 {[%clk 0:00:38.7]} 84. Ne6 {[%clk 0:00:02.7]} 84...
Kh8 {[%clk 0:00:38.5]} 85. Ng7 {[%clk 0:00:03]} 85... Kg8 {[%clk 0:00:38.5]} 86.
Bf7+ {[%clk 0:00:02.8]} 86... Kh7 {[%clk 0:00:38.6]} 87. Ne6 {[%clk 0:00:01.1]}
87... Kh6 {[%clk 0:00:38.4]} 1/2-1/2

[Event "Late-Titled-Tuesday-Blitz-February-13-2024"]
[Site "Chess.com"]
[Date "2024.02.13"]
[Round "3"]
[White "Msb2"]
[Black "grzechu96"]
[Result "1/2-1/2"]
[WhiteElo "3007"]
[BlackElo "2767"]
[TimeControl "180+1"]
[EndTime "14:29:52 PST"]
[Termination "Game drawn by repetition"]

1. d4 {[%clk 0:03:00.9]} 1... d5 {[%clk 0:02:59.4]} 2. c4 {[%clk 0:03:01.4]}
2... c6 {[%clk 0:02:59.4]} 3. Nf3 {[%clk 0:03:00.9]} 3... Nf6 {[%clk 0:02:58.8]}
4. Nc3 {[%clk 0:03:01.8]} 4... e6 {[%clk 0:02:57.6]} 5. Qc2 {[%clk 0:03:02.2]}
5... dxc4 {[%clk 0:02:53.4]} 6. e4 {[%clk 0:03:02.7]} 6... b5 {[%clk 0:02:51]}
7. Be2 {[%clk 0:03:03.4]} 7... Bb7 {[%clk 0:02:49.3]} 8. O-O {[%clk 0:03:04]}
8... Qc8 {[%clk 0:02:49.3]} 9. b3 {[%clk 0:02:53.1]} 9... b4 {[%clk 0:02:34.6]}
10. Na4 {[%clk 0:02:53]} 10... c3 {[%clk 0:02:35.1]} 11. a3 {[%clk 0:02:53.4]}
11... c5 {[%clk 0:02:35.4]} 12. Nxc5 {[%clk 0:02:33.4]} 12... Bxc5 {[%clk
0:02:33.6]} 13. dxc5 {[%clk 0:02:34.3]} 13... Bxe4 {[%clk 0:02:29.7]} 14. Bb5+
{[%clk 0:02:25.8]} 14... Nc6 {[%clk 0:01:42.5]} 15. Qe2 {[%clk 0:02:24.5]} 15...
O-O {[%clk 0:01:42.6]} 16. Bxc6 {[%clk 0:02:07.1]} 16... Bxc6 {[%clk 0:01:17.6]}
17. axb4 {[%clk 0:02:07]} 17... Qb7 {[%clk 0:01:17.8]} 18. Rd1 {[%clk
0:01:55.4]} 18... Qxb4 {[%clk 0:01:10.9]} 19. Nd4 {[%clk 0:01:55.4]} 19... Qb7
{[%clk 0:00:53.7]} 20. Nxc6 {[%clk 0:01:43.3]} 20... Qxc6 {[%clk 0:00:54.6]} 21.
Qc4 {[%clk 0:01:43.5]} 21... Nd5 {[%clk 0:00:53.5]} 22. Ra6 {[%clk 0:01:38.7]}
22... Qc7 {[%clk 0:00:50.7]} 23. b4 {[%clk 0:01:30.6]} 23... Rab8 {[%clk
0:00:46.5]} 24. Ba3 {[%clk 0:01:29.8]} 24... Rfd8 {[%clk 0:00:40.7]} 25. Rc1
{[%clk 0:01:25]} 25... Qb7 {[%clk 0:00:28.7]} 26. c6 {[%clk 0:01:20.6]} 26...
Qc7 {[%clk 0:00:25.7]} 27. b5 {[%clk 0:01:20.9]} 27... Qe5 {[%clk 0:00:10.9]}
28. g3 {[%clk 0:01:15.6]} 28... Nc7 {[%clk 0:00:08.7]} 29. Rxa7 {[%clk
0:01:15.3]} 29... Nxb5 {[%clk 0:00:08.7]} 30. c7 {[%clk 0:01:16]} 30... Nxa7
{[%clk 0:00:07.7]} 31. cxb8=Q {[%clk 0:01:10.9]} 31... Rxb8 {[%clk 0:00:05.2]}
32. Rxc3 {[%clk 0:01:11.3]} 32... h6 {[%clk 0:00:03.8]} 33. Re3 {[%clk
0:01:10.6]} 33... Qd5 {[%clk 0:00:03]} 34. Qc2 {[%clk 0:01:07.8]} 34... Rc8
{[%clk 0:00:02.5]} 35. Qe2 {[%clk 0:01:06.1]} 35... Nc6 {[%clk 0:00:03]} 36. Bb2
{[%clk 0:01:02.1]} 36... Nd4 {[%clk 0:00:02.8]} 37. Qd1 {[%clk 0:01:02.8]} 37...
Rd8 {[%clk 0:00:02.6]} 38. Bxd4 {[%clk 0:00:49.6]} 38... Qxd4 {[%clk 0:00:03.5]}
39. Qf3 {[%clk 0:00:50.4]} 39... Qd1+ {[%clk 0:00:02.3]} 40. Kg2 {[%clk
0:00:51.1]} 40... Qxf3+ {[%clk 0:00:02.4]} 41. Kxf3 {[%clk 0:00:52]} 41... g5
{[%clk 0:00:02.5]} 42. h4 {[%clk 0:00:50.7]} 42... gxh4 {[%clk 0:00:01.3]} 43.
gxh4 {[%clk 0:00:51.6]} 43... Kg7 {[%clk 0:00:02]} 44. Kg3 {[%clk 0:00:52.3]}
44... Kf6 {[%clk 0:00:02.6]} 45. Rf3+ {[%clk 0:00:52.5]} 45... Kg6 {[%clk
0:00:03.3]} 46. Ra3 {[%clk 0:00:53.4]} 46... Rd4 {[%clk 0:00:03.8]} 47. Ra5
{[%clk 0:00:52.9]} 47... Kf6 {[%clk 0:00:04.2]} 48. Rh5 {[%clk 0:00:52.4]} 48...
Kg6 {[%clk 0:00:04.6]} 49. Ra5 {[%clk 0:00:53.3]} 49... Rc4 {[%clk 0:00:05.1]}
50. Rb5 {[%clk 0:00:53.3]} 50... Re4 {[%clk 0:00:05.2]} 51. f3 {[%clk
0:00:53.5]} 51... Rd4 {[%clk 0:00:05.6]} 52. Rb8 {[%clk 0:00:54.2]} 52... Rd5
{[%clk 0:00:05.9]} 53. Rg8+ {[%clk 0:00:53.7]} 53... Kf6 {[%clk 0:00:06.3]} 54.
Ra8 {[%clk 0:00:54.6]} 54... h5 {[%clk 0:00:05.7]} 55. Rh8 {[%clk 0:00:53.9]}
55... Kg6 {[%clk 0:00:05.7]} 56. Rg8+ {[%clk 0:00:53.9]} 56... Kh7 {[%clk
0:00:05.9]} 57. Rb8 {[%clk 0:00:54.8]} 57... Kg7 {[%clk 0:00:06]} 58. Kf4 {[%clk
0:00:54.7]} 58... Rf5+ {[%clk 0:00:06.1]} 59. Ke4 {[%clk 0:00:54.3]} 59... Kf6
{[%clk 0:00:06]} 60. Rh8 {[%clk 0:00:53]} 60... Ra5 {[%clk 0:00:05.7]} 61. Kf4
{[%clk 0:00:53.1]} 61... Ra4+ {[%clk 0:00:05.5]} 62. Kg3 {[%clk 0:00:53.7]}
62... Kg6 {[%clk 0:00:05.8]} 63. Rg8+ {[%clk 0:00:53.7]} 63... Kh7 {[%clk
0:00:06.1]} 64. Rg5 {[%clk 0:00:52.4]} 64... Kh6 {[%clk 0:00:05.7]} 65. Rg8
{[%clk 0:00:53.1]} 65... Ra5 {[%clk 0:00:06.1]} 66. Rh8+ {[%clk 0:00:53.3]}
66... Kg7 {[%clk 0:00:06.2]} 67. Rb8 {[%clk 0:00:53.3]} 67... e5 {[%clk
0:00:06.5]} 68. Re8 {[%clk 0:00:51.7]} 68... f6 {[%clk 0:00:05.9]} 69. Rb8
{[%clk 0:00:46.2]} 69... Ra3 {[%clk 0:00:06.1]} 70. Kf2 {[%clk 0:00:45.8]} 70...
Kg6 {[%clk 0:00:06.6]} 71. Rb4 {[%clk 0:00:40.5]} 71... Kf5 {[%clk 0:00:06.8]}
72. Kg3 {[%clk 0:00:41.1]} 72... Rc3 {[%clk 0:00:06.2]} 73. Ra4 {[%clk
0:00:41.5]} 73... Rd3 {[%clk 0:00:06.4]} 74. Rc4 {[%clk 0:00:41.9]} 74... Rd1
{[%clk 0:00:06.6]} 75. Ra4 {[%clk 0:00:41.8]} 75... Rg1+ {[%clk 0:00:06.7]} 76.
Kf2 {[%clk 0:00:42.4]} 76... Rc1 {[%clk 0:00:06.8]} 77. Kg3 {[%clk 0:00:42.9]}
77... Rc2 {[%clk 0:00:06.7]} 78. Rb4 {[%clk 0:00:43.3]} 78... Rc3 {[%clk
0:00:07]} 79. Ra4 {[%clk 0:00:43.8]} 79... Kg6 {[%clk 0:00:07.3]} 80. Rb4 {[%clk
0:00:44.2]} 80... Ra3 {[%clk 0:00:05.4]} 81. Rc4 {[%clk 0:00:44.4]} 81... Rb3
{[%clk 0:00:04.8]} 82. Ra4 {[%clk 0:00:44.5]} 82... Kf5 {[%clk 0:00:05.2]} 83.
Rc4 {[%clk 0:00:44.3]} 83... Rb8 {[%clk 0:00:05.3]} 84. Ra4 {[%clk 0:00:44.6]}
84... Rg8+ {[%clk 0:00:05.2]} 85. Kf2 {[%clk 0:00:45.1]} 85... Rd8 {[%clk
0:00:05.8]} 86. Kg3 {[%clk 0:00:45.7]} 86... Rd4 {[%clk 0:00:06.1]} 87. Ra8
{[%clk 0:00:45.7]} 87... e4 {[%clk 0:00:03.6]} 88. Ra5+ {[%clk 0:00:27.2]} 88...
Kg6 {[%clk 0:00:03.9]} 89. fxe4 {[%clk 0:00:28]} 89... Rxe4 {[%clk 0:00:04.4]}
90. Ra8 {[%clk 0:00:28.8]} 90... Rg4+ {[%clk 0:00:04.6]} 91. Kh3 {[%clk
0:00:29.5]} 91... f5 {[%clk 0:00:04.4]} 92. Rg8+ {[%clk 0:00:29.3]} 92... Kf6
{[%clk 0:00:03.8]} 93. Rh8 {[%clk 0:00:29.5]} 93... Kg6 {[%clk 0:00:02.4]} 94.
Rg8+ {[%clk 0:00:30]} 94... Kf6 {[%clk 0:00:02.8]} 95. Rh8 {[%clk 0:00:30.4]}
95... Kg6 {[%clk 0:00:03]} 96. Rg8+ {[%clk 0:00:30.7]} 1/2-1/2